fUST/lending_fUST_20250610
["ID","MTS","AMOUNT","RATE_DAILY","PERIOD"]
[365140180,1749487836732,-430.0,0.00021095,4]
[365140182,1749487836741,-460.0,0.00021095,4]
[365140184,1749487836751,-440.0,0.00021095,4]
[365140186,1749487836760,-440.0,0.00021095,4]
[365140188,1749487836770,-440.0,0.00021095,4]
[365140190,1749487836781,-440.0,0.00021095,4]
[365140192,1749487836791,-440.0,0.00021095,4]
[365140194,1749487836800,-460.0,0.00021095,4]
[365140196,1749487836810,-430.0,0.00021095,4]
[365140198,1749487836819,-440.0,0.00021095,4]
[365140200,1749487836829,-440.0,0.00021095,4]
[365140202,1749487836838,-440.0,0.00021095,4]
[365140204,1749487836848,-491.7,0.00021095,4]
[365140206,1749487836857,-440.0,0.00021095,4]
[365140208,1749487836867,-843.5,0.00021095,4]
[365140210,1749487836877,-431.70411064,0.00021095,4]
[365140212,1749487836887,-343.22230058,0.00021095,4]
[365140214,1749487836897,-431.01518832,0.00021095,4]
[365140216,1749487836906,-440.00000002,0.00021095,4]
[365140218,1749487836914,-430.0,0.00021095,4]
[365140221,1749487836923,-440.0,0.00021095,4]
[365140223,1749487836932,-440.0,0.00021095,4]
[365140224,1749487836939,-434.96709773,0.00021095,4]
[365140226,1749487836947,-460.0,0.00021095,4]
[365140228,1749487836955,-440.0,0.00021095,4]
[365140230,1749487836965,-1347.74,0.00021095,4]
[365140232,1749487836974,-1037.09,0.00021095,4]
[365140234,1749487836984,-460.0,0.00021095,4]
[365140236,1749487836993,-440.0,0.00021095,4]
[365140238,1749487837003,-440.0,0.00021095,4]
[365140240,1749487837013,-440.0,0.00021095,4]
[365140242,1749487837022,-430.0,0.00021095,4]
[365140245,1749487837032,-519.34,0.00021095,4]
[365140246,1749487837041,-440.0,0.00021095,4]
[365140248,1749487837051,-430.0,0.00021095,4]
[365140250,1749487837060,-430.0,0.00021095,4]
[365140253,1749487837070,-440.0,0.00021095,4]
[365140255,1749487837081,-440.0,0.00021095,4]
[365140257,1749487837091,-440.0,0.00021095,4]
[365140259,1749487837101,-332.41062033,0.00021095,4]
[365140261,1749487837111,-440.0,0.00021095,4]
[365140263,1749487837120,-430.0,0.00021095,4]
[365140264,1749487837130,-155.847026,0.00021095,2]
[365140266,1749487837139,-1073.52,0.00021095,4]
[365140269,1749487837149,-460.0,0.00021095,4]
[365140271,1749487837158,-440.0,0.00021095,4]
[365140273,1749487837169,-430.0,0.00021095,4]
[365140275,1749487837178,-430.0,0.00021095,4]
[365140277,1749487837187,-430.0,0.00021095,4]
[365140279,1749487837197,-440.0,0.00021095,4]
[365140281,1749487837206,-342.95305357,0.00021095,4]
[365140283,1749487837216,-460.0,0.00021095,4]
[365140285,1749487837225,-440.0,0.00021095,4]
[365140287,1749487837235,-440.0,0.00021095,4]
[365140289,1749487837244,-792.61,0.00021095,4]
[365140291,1749487837254,-440.0,0.00021095,4]
[365140293,1749487837268,-276.88396549,0.00021095,4]
[365140295,1749487837278,-440.0,0.00021095,4]
[365140297,1749487837288,-460.0,0.00021095,4]
[365140299,1749487837298,-440.0,0.00021095,4]
[365140301,1749487837308,-440.0,0.00021095,4]
[365140303,1749487837317,-440.0,0.00021095,4]
[365140305,1749487837327,-440.0,0.00021095,4]
[365140307,1749487837338,-3144.26,0.00021095,4]
[365140310,1749487837350,-460.0,0.00021095,4]
[365140312,1749487837359,-433.9319657,0.00021095,4]
[365140314,1749487837368,-440.0,0.00021095,4]
[365140316,1749487837378,-364.78863411,0.00021095,4]
[365140317,1749487837387,-460.0,0.00021095,4]
[365140319,1749487837396,-440.0,0.00021095,4]
[365140320,1749487837405,-370.0,0.00021095,4]
[365140322,1749487837414,-430.0,0.00021095,4]
[365140324,1749487837423,-460.0,0.00021095,4]
[365140326,1749487837433,-460.0,0.00021095,4]
[365140328,1749487837442,-460.0,0.00021095,4]
[365140330,1749487837451,-430.0,0.00021095,4]
[365140332,1749487837461,-440.0,0.00021095,4]
[365140334,1749487837471,-440.0,0.00021095,4]
[365140336,1749487837481,-1754.33,0.00021095,4]
[365140338,1749487837490,-430.0,0.00021095,4]
[365140340,1749487837500,-440.0,0.00021095,4]
[365140342,1749487837510,-2326.82,0.00021095,4]
[365140344,1749487837520,-550.98118995,0.00021095,4]
[365140346,1749487837530,-370.0,0.00021095,4]
[365140348,1749487837540,-430.0,0.00021095,4]
[365140349,1749487837549,-6338.44,0.00021095,4]
[365140350,1749487837559,-440.0,0.00021095,4]
[365140351,1749487837568,-440.0,0.00021095,4]
[365140352,1749487837577,-440.0,0.00021095,4]
[365140353,1749487837587,-440.0,0.00021095,4]
[365140354,1749487837597,-716.49,0.00021095,4]
[365140355,1749487837608,-151.0,0.00021095,2]
[365140356,1749487837618,-430.0,0.00021095,4]
[365140357,1749487837628,-440.0,0.00021095,4]
[365140358,1749487837638,-151.0,0.00021095,2]
[365140359,1749487837648,-440.0,0.00021095,4]
[365140360,1749487837657,-460.0,0.00021095,4]
[365140361,1749487837667,-500.0,0.00021095,4]
[365140362,1749487837676,-500.0,0.00021095,4]
[365140363,1749487837686,-500.0,0.00021095,4]
[365140364,1749487837695,-1695.42,0.00021095,4]
[365140365,1749487837705,-430.0,0.00021095,4]
[365140366,1749487837714,-440.0,0.00021095,4]
[365140367,1749487837724,-892.82,0.00021095,4]
[365140368,1749487837733,-595.43,0.00021095,4]
[365140369,1749487837742,-440.0,0.00021095,4]
[365140370,1749487837751,-460.0,0.00021095,4]
[365140371,1749487837761,-430.49179202,0.00021095,4]
[365140372,1749487837770,-440.0,0.00021095,4]
[365140373,1749487837781,-440.0,0.00021095,4]
[365140374,1749487837790,-339.3581816,0.00021176,4]
[365140375,1749487837799,-339.3581816,0.00021314,5]
[365140376,1749487837808,-361.570594,0.00021367,2]
[365140377,1749487837817,-361.570594,0.00021367,2]
[365140378,1749487837826,-155.313048,0.00021367,2]
[365140379,1749487837836,-151.0,0.00021367,2]
[365140380,1749487837847,-151.0,0.00021367,2]
[365140381,1749487837856,-264.057833,0.00021367,2]
[365140382,1749487837865,-264.057833,0.00021367,2]
[365140383,1749487837874,-430.0,0.00021368,4]
[365140384,1749487837884,-151.0,0.00021368,2]
[365140385,1749487837893,-151.0,0.00021368,2]
[365140386,1749487837902,-151.0,0.00021368,2]
[365140387,1749487837912,-410.0,0.00021369,4]
[365140388,1749487837921,-410.0,0.00021369,4]
[365140389,1749487837930,-420.0,0.00021369,4]
[365140390,1749487837939,-420.0,0.00021369,4]
[365140391,1749487837949,-420.0,0.00021369,4]
[365140392,1749487837958,-485.315503,0.00021369,4]
[365140393,1749487837967,-410.0,0.00021369,4]
[365140394,1749487837976,-410.0,0.00021369,4]
[365140395,1749487837985,-420.0,0.00021369,4]
[365140397,1749487837995,-410.0,0.00021369,4]
[365140399,1749487838004,-351.44406114,0.00021369,4]
[365140401,1749487838014,-370.0,0.00021369,4]
[365140402,1749487838024,-400.0,0.00021369,4]
[365140403,1749487838035,-400.0,0.00021369,4]
[365140404,1749487838044,-1362.62,0.00021369,4]
[365140406,1749487838054,-151.0,0.00021369,2]
[365140407,1749487838067,-151.0,0.00021369,2]
[365140409,1749487838076,-151.0,0.00021369,2]
[365140412,1749487838086,-460.0,0.00021369,4]
[365140414,1749487838096,-361.570594,0.00021369,2]
[365140417,1749487838106,-361.570594,0.00021369,2]
[365140418,1749487838115,-151.0,0.00021369,2]
[365140419,1749487838125,-151.0,0.00021369,2]
[365140420,1749487838134,-151.0,0.00021369,2]
[365140423,1749487838144,-460.0,0.00021369,2]
[365140425,1749487838154,-460.0,0.00021369,4]
[365140427,1749487838165,-440.0,0.00021369,4]
[365140429,1749487838174,-559.8,0.00021369,4]
[365140431,1749487838184,-460.0,0.00021369,4]
[365140433,1749487838193,-515.8,0.00021369,4]
[365140435,1749487838203,-460.0,0.00021369,4]
[365140437,1749487838213,-440.0,0.00021369,4]
[365140439,1749487838223,-460.0,0.00021369,4]
[365140441,1749487838232,-380.0,0.00021369,4]
[365140443,1749487838242,-151.0,0.00021369,2]
[365140444,1749487838252,-151.0,0.00021369,2]
[365140445,1749487838266,-28.4500328,0.00021369,4]
[365140447,1749487838613,-337.90960781,0.00021369,4]
[365140780,1749487843751,-460.0,0.00021095,4]
[365140782,1749487843761,-460.0,0.00021095,4]
[365140784,1749487843771,-93.64035939,0.00021369,4]
[365140786,1749487843781,-400.0,0.00021369,4]
[365140789,1749487843791,-264.057833,0.00021369,2]
[365140791,1749487843800,-264.057833,0.00021369,2]
[365140793,1749487843810,-264.057833,0.00021369,2]
[365140795,1749487843819,-264.057833,0.00021369,2]
[365140797,1749487843829,-99.07325788,0.00021369,4]
[365141107,1749487846814,-315.89551697,0.00021095,4]
[365141114,1749487846869,-1406.83448303,0.00021095,4]
[365141116,1749487846879,-360.92674212,0.00021369,4]
[365141118,1749487846889,-460.0,0.00021369,4]
[365141120,1749487846899,-151.0,0.00021369,2]
[365141122,1749487846908,-460.0,0.00021369,4]
[365141124,1749487846918,-151.0,0.00021369,2]
[365141126,1749487846927,-154.415921,0.00021369,2]
[365141128,1749487846937,-876.93,0.00021369,4]
[365141130,1749487846947,-460.0,0.00021369,4]
[365141132,1749487846956,-1288.02,0.00021369,4]
[365141134,1749487846966,-1974.61,0.00021369,4]
[365141136,1749487846975,-538.06,0.00021369,4]
[365141138,1749487846984,-674.59,0.00021369,4]
[365141140,1749487846993,-460.0,0.00021369,4]
[365141142,1749487847003,-151.0,0.00021369,2]
[365141144,1749487847012,-151.0,0.00021369,2]
[365141146,1749487847022,-460.0,0.00021369,4]
[365141148,1749487847031,-666.36,0.00021369,4]
[365141150,1749487847042,-460.0,0.00021369,4]
[365141152,1749487847052,-460.0,0.00021369,4]
[365141154,1749487847061,-491.7,0.00021369,4]
[365141156,1749487847070,-843.5,0.00021369,4]
[365141158,1749487847080,-460.0,0.00021369,4]
[365141160,1749487847089,-1347.74,0.00021369,4]
[365141162,1749487847098,-1037.09,0.00021369,4]
[365141164,1749487847107,-460.0,0.00021369,4]
[365141166,1749487847117,-519.34,0.00021369,4]
[365141168,1749487847126,-1073.52,0.00021369,4]
[365141171,1749487847135,-460.0,0.00021369,4]
[365141173,1749487847145,-460.0,0.00021369,4]
[365141175,1749487847154,-792.61,0.00021369,4]
[365141177,1749487847164,-460.0,0.00021369,4]
[365141179,1749487847173,-3144.26,0.00021369,4]
[365141181,1749487847183,-460.0,0.00021369,4]
[365141183,1749487847192,-460.0,0.00021369,4]
[365141185,1749487847202,-460.0,0.00021369,4]
[365141187,1749487847211,-460.0,0.00021369,4]
[365141189,1749487847220,-460.0,0.00021369,4]
[365141191,1749487847230,-1754.33,0.00021369,4]
[365141193,1749487847240,-2326.82,0.00021369,4]
[365141195,1749487847250,-6338.44,0.00021369,4]
[365141197,1749487847265,-716.49,0.00021369,4]
[365141199,1749487847275,-460.0,0.00021369,4]
[365141201,1749487847287,-1695.42,0.00021369,4]
[365141203,1749487847297,-892.82,0.00021369,4]
[365141205,1749487847309,-595.43,0.00021369,4]
[365141207,1749487847319,-460.0,0.00021369,4]
[365141209,1749487847329,-460.0,0.00021369,4]
[365141211,1749487847340,-460.0,0.00021369,4]
[365141213,1749487847351,-1722.73,0.00021369,4]
[365141216,1749487847361,-2329.66,0.000214,2]
[365141218,1749487847371,-339.3581816,0.00021452,5]
[365141220,1749487847381,-675.81,0.00021479,2]
[365141222,1749487847391,-361.570594,0.00021479,2]
[365141224,1749487847402,-361.570594,0.00021479,2]
[365141226,1749487847411,-300.0,0.00021483,2]
[365141228,1749487847421,-339.3581816,0.0002159,5]
[365141230,1749487847431,-758.9348566,0.00021621,2]
[365141232,1749487847440,-151.0,0.00021633,2]
[365141234,1749487847449,-151.0,0.00021633,2]
[365141236,1749487847460,-500.0,0.00021641,2]
[365141238,1749487847470,-325.492098,0.00021641,2]
[365141240,1749487847480,-325.492098,0.00021641,2]
[365141242,1749487847489,-151.0,0.00021641,2]
[365141244,1749487847498,-151.0,0.00021641,2]
[365141246,1749487847509,-151.0,0.00021641,2]
[365141248,1749487847518,-395.333895,0.00021641,2]
[365141250,1749487847527,-395.333895,0.00021641,2]
[365141252,1749487847540,-324.393913,0.00021641,2]
[365141254,1749487847549,-324.393913,0.00021641,2]
[365141256,1749487847559,-151.0,0.00021642,2]
[365141258,1749487847568,-151.0,0.00021642,2]
[365141260,1749487847578,-151.0,0.00021642,2]
[365141262,1749487847588,-151.0,0.00021642,2]
[365141264,1749487847598,-151.0,0.00021642,2]
[365141266,1749487847608,-151.0,0.00021642,2]
[365141268,1749487847617,-151.0,0.00021642,2]
[365141270,1749487847627,-192.623825,0.00021643,2]
[365141272,1749487847637,-192.623825,0.00021643,2]
[365141274,1749487847646,-271.396556,0.00021643,2]
[365141276,1749487847655,-195.678599,0.00021643,2]
[365141278,1749487847665,-195.678599,0.00021643,2]
[365141280,1749487847674,-151.0,0.00021643,2]
[365141282,1749487847684,-151.927387,0.00021643,2]
[365141284,1749487847694,-1362.62,0.00021643,4]
[365141286,1749487847704,-325.492098,0.00021643,2]
[365141288,1749487847714,-325.492098,0.00021643,2]
[365141290,1749487847724,-151.0,0.00021643,2]
[365141292,1749487847734,-151.0,0.00021643,2]
[365141294,1749487847744,-460.0,0.00021643,4]
[365141296,1749487847754,-151.0,0.00021643,2]
[365141298,1749487847764,-361.570594,0.00021643,2]
[365141300,1749487847774,-185.20029272,0.00021643,2]
[365141454,1749488048236,186.0,0.00016438,3]
[365141471,1749488650165,165.600522,0.00013699,2]
[365141512,1749489032844,-179.52904954,0.000189,2]
[365141513,1749489032855,-194.42097214,0.0002,2]
[365141514,1749489032865,-211.347,0.00020223,2]
[365141515,1749489032876,-218.0,0.00020274,3]
[365141516,1749489032886,-171.43816069,0.00020995,2]
[365141517,1749489032896,-527.380506,0.00021095,2]
[365141518,1749489032906,-527.380506,0.00021095,2]
[365141519,1749489032916,-527.380506,0.00021095,2]
[365141520,1749489032926,-527.380506,0.00021095,2]
[365141521,1749489032936,-527.380506,0.00021095,2]
[365141522,1749489032946,-527.380506,0.00021095,2]
[365141523,1749489032956,-527.380506,0.00021095,2]
[365141524,1749489032966,-527.380506,0.00021095,2]
[365141525,1749489032977,-151.0,0.00021095,2]
[365141527,1749489032987,-151.0,0.00021095,2]
[365141529,1749489032998,-151.0,0.00021095,2]
[365141531,1749489033009,-151.0,0.00021095,2]
[365141532,1749489033019,-170.086079,0.00021095,2]
[365141533,1749489033030,-170.086079,0.00021095,2]
[365141534,1749489033041,-170.086079,0.00021095,2]
[365141535,1749489033051,-170.086079,0.00021095,2]
[365141536,1749489033062,-170.086079,0.00021095,2]
[365141537,1749489033072,-170.086079,0.00021095,2]
[365141538,1749489033082,-170.086079,0.00021095,2]
[365141539,1749489033092,-170.086079,0.00021095,2]
[365141540,1749489033102,-151.0,0.00021095,2]
[365141541,1749489033113,-151.459583,0.00021095,2]
[365141542,1749489033124,-163.310284,0.00021095,2]
[365141543,1749489033135,-440.0,0.00021095,4]
[365141544,1749489033147,-370.0,0.00021095,4]
[365141545,1749489033159,-688.29,0.00021095,4]
[365141546,1749489033169,-460.0,0.00021095,4]
[365141547,1749489033179,-460.0,0.00021095,4]
[365141548,1749489033191,-390.0,0.00021095,4]
[365141549,1749489033201,-440.0,0.00021095,4]
[365141550,1749489033210,-433.05810381,0.00021095,4]
[365141551,1749489033220,-460.0,0.00021095,4]
[365141552,1749489033230,-460.0,0.00021095,4]
[365141553,1749489033240,-420.0,0.00021095,4]
[365141555,1749489033250,-440.0,0.00021095,4]
[365141556,1749489033260,-440.0,0.00021095,4]
[365141557,1749489033270,-460.0,0.00021095,2]
[365141559,1749489033280,-440.0,0.00021095,4]
[365141561,1749489033291,-400.0,0.00021095,4]
[365141564,1749489033310,-411.08164788,0.00021095,4]
[365141566,1749489033320,-460.0,0.00021095,4]
[365141568,1749489033331,-460.0,0.00021095,4]
[365141570,1749489033341,-440.0,0.00021095,4]
[365141572,1749489033352,-440.0,0.00021095,4]
[365141574,1749489033362,-460.0,0.00021095,4]
[365141576,1749489033371,-440.0,0.00021095,4]
[365141578,1749489033381,-380.0,0.00021095,4]
[365141580,1749489033391,-438.51435917,0.00021095,4]
[365141582,1749489033401,-440.0,0.00021095,4]
[365141584,1749489033412,-440.0,0.00021095,4]
[365141586,1749489033422,-440.0,0.00021095,4]
[365141588,1749489033431,-440.0,0.00021095,4]
[365141590,1749489033442,-440.0,0.00021095,4]
[365141592,1749489033452,-440.0,0.00021095,4]
[365141594,1749489033463,-440.0,0.00021095,4]
[365141596,1749489033472,-390.0,0.00021095,4]
[365141598,1749489033482,-460.0,0.00021095,4]
[365141600,1749489033493,-460.0,0.00021095,4]
[365141602,1749489033505,-420.0,0.00021095,4]
[365141604,1749489033523,-430.0,0.00021095,4]
[365141606,1749489033537,-460.0,0.00021095,4]
[365141608,1749489033548,-440.0,0.00021095,4]
[365141610,1749489033559,-440.0,0.00021095,4]
[365141612,1749489033570,-440.0,0.00021095,4]
[365141614,1749489033580,-598.42,0.00021095,4]
[365141616,1749489033591,-440.0,0.00021095,4]
[365141618,1749489033601,-440.0,0.00021095,4]
[365141620,1749489033612,-460.0,0.00021095,4]
[365141622,1749489033622,-440.0,0.00021095,4]
[365141624,1749489033632,-460.0,0.00021095,4]
[365141626,1749489033643,-1579.17,0.00021095,4]
[365141628,1749489033654,-440.0,0.00021095,4]
[365141630,1749489033669,-440.0,0.00021095,4]
[365141632,1749489033679,-877.19,0.00021095,4]
[365141634,1749489033690,-574.43913248,0.00021095,4]
[365141636,1749489033699,-400.0,0.00021095,4]
[365141638,1749489033710,-400.0,0.00021095,4]
[365141640,1749489033720,-1328.58,0.00021095,4]
[365141642,1749489033730,-420.0,0.00021095,4]
[365141644,1749489033740,-440.0,0.00021095,4]
[365141646,1749489033750,-511.55,0.00021095,4]
[365141648,1749489033760,-440.0,0.00021095,4]
[365141650,1749489033770,-460.0,0.00021095,4]
[365141652,1749489033780,-2000.09,0.00021095,4]
[365141654,1749489033790,-440.0,0.00021095,4]
[365141656,1749489033801,-440.0,0.00021095,4]
[365141658,1749489033811,-460.0,0.00021095,4]
[365141660,1749489033821,-430.0,0.00021095,2]
[365141662,1749489033831,-1192.29,0.00021095,4]
[365141664,1749489033841,-673.73,0.00021095,4]
[365141666,1749489033851,-402.04471449,0.00021095,4]
[365141668,1749489033861,-440.0,0.00021095,4]
[365141670,1749489033871,-560.0,0.00021095,4]
[365141672,1749489033881,-635.09,0.00021095,4]
[365141674,1749489033892,-440.0,0.00021095,4]
[365141676,1749489033903,-440.0,0.00021095,4]
[365141678,1749489033914,-440.0,0.00021095,4]
[365141680,1749489033924,-440.0,0.00021095,4]
[365141682,1749489033934,-440.0,0.00021095,4]
[365141684,1749489033945,-440.0,0.00021095,4]
[365141686,1749489033955,-460.0,0.00021095,4]
[365141688,1749489033966,-434.74176524,0.00021095,4]
[365141689,1749489033976,-440.0,0.00021095,4]
[365141691,1749489033987,-469.05,0.00021095,4]
[365141693,1749489033997,-460.0,0.00021095,4]
[365141696,1749489034010,-430.0,0.00021095,4]
[365141698,1749489034020,-848.24,0.00021095,4]
[365141700,1749489034030,-420.0,0.00021095,4]
[365141702,1749489034040,-440.0,0.00021095,4]
[365141718,1749489034194,-440.0,0.00021095,4]
[365141720,1749489034205,-440.0,0.00021095,4]
[365141722,1749489034216,-440.0,0.00021095,4]
[365141724,1749489034226,-420.0,0.00021095,4]
[365141726,1749489034237,-431.55632666,0.00021095,4]
[365141728,1749489034247,-495.29090507,0.00021095,4]
[365141730,1749489034257,-402.31059185,0.00021095,4]
[365141732,1749489034268,-460.0,0.00021095,4]
[365141734,1749489034277,-950.66,0.00021095,4]
[365141736,1749489034286,-494.39,0.00021095,4]
[365141738,1749489034297,-440.0,0.00021095,4]
[365141740,1749489034307,-460.0,0.00021095,4]
[365141742,1749489034317,-258.47842106,0.00021095,4]
[365141744,1749489034327,-460.0,0.00021095,4]
[365141746,1749489034337,-1235.43,0.00021095,4]
[365141748,1749489034346,-460.0,0.00021095,4]
[365141750,1749489034356,-333.70321338,0.00021095,4]
[365141752,1749489034365,-440.0,0.00021095,4]
[365141754,1749489034375,-410.0,0.00021095,4]
[365141756,1749489034384,-440.0,0.00021095,4]
[365141759,1749489034395,-440.0,0.00021095,4]
[365141761,1749489034405,-460.0,0.00021095,4]
[365141762,1749489034414,-1049.95,0.00021095,4]
[365141764,1749489034424,-460.0,0.00021095,4]
[365141766,1749489034433,-460.0,0.00021095,4]
[365141768,1749489034443,-500.0,0.00021095,4]
[365141770,1749489034453,-430.0,0.00021095,4]
[365141773,1749489034463,-432.09181388,0.00021095,4]
[365141774,1749489034473,-460.0,0.00021095,4]
[365141776,1749489034482,-460.0,0.00021095,4]
[365141778,1749489034492,-289.34705371,0.00021095,4]
[365141780,1749489034501,-744.9,0.00021095,4]
[365141782,1749489034510,-460.0,0.00021095,4]
[365141784,1749489034521,-430.0,0.00021095,4]
[365141787,1749489034531,-460.0,0.00021095,4]
[365141789,1749489034541,-460.0,0.00021095,4]
[365141791,1749489034552,-440.0,0.00021095,4]
[365141793,1749489034562,-1785.03,0.00021095,4]
[365141794,1749489034572,-2920.14,0.00021095,4]
[365141796,1749489034582,-440.0,0.00021095,4]
[365141798,1749489034591,-375.9245237,0.00021095,4]
[365141800,1749489034601,-460.0,0.00021095,4]
[365141802,1749489034611,-460.0,0.00021095,4]
[365141804,1749489034622,-2180.45,0.00021095,4]
[365141807,1749489034632,-460.0,0.00021095,4]
[365141809,1749489034642,-460.0,0.00021095,4]
[365141811,1749489034653,-500.0,0.00021095,4]
[365141813,1749489034666,-460.0,0.00021095,4]
[365141815,1749489034677,-500.0,0.00021095,4]
[365141817,1749489034687,-522.48,0.00021095,4]
[365141819,1749489034697,-3505.31053496,0.00021095,4]
[365141822,1749489034720,-1029.05586708,0.00021095,4]
[365141824,1749489034732,-2318.77359796,0.00021095,4]
[365141826,1749489034743,-440.0,0.00021095,4]
[365141828,1749489034753,-460.0,0.00021095,4]
[365141830,1749489034763,-241.27547286,0.00021095,4]
[365142172,1749489038942,-4633.0,0.00018,2]
[365142173,1749489038952,-198.72452714,0.00021095,4]
[365142174,1749489038962,-460.0,0.00021095,4]
[365142175,1749489038972,-564.14,0.00021095,4]
[365142176,1749489038982,-283.97046111,0.00021095,4]
[365142177,1749489038991,-675.12,0.00021095,4]
[365142178,1749489039001,-1578.23,0.00021095,4]
[365142179,1749489039011,-440.0,0.00021095,4]
[365142180,1749489039021,-573.48,0.00021095,4]
[365142181,1749489039032,-460.0,0.00021095,4]
[365142182,1749489039042,-334.93,0.00021359,10]
[365142183,1749489039053,-869.86,0.00021368,4]
[365142184,1749489039064,-527.380506,0.00021369,2]
[365142185,1749489039075,-527.380506,0.00021369,2]
[365142186,1749489039086,-527.380506,0.00021369,2]
[365142187,1749489039095,-527.380506,0.00021369,2]
[365142188,1749489039105,-170.086079,0.00021369,2]
[365142189,1749489039115,-170.086079,0.00021369,2]
[365142190,1749489039124,-170.086079,0.00021369,2]
[365142191,1749489039133,-170.086079,0.00021369,2]
[365142192,1749489039143,-688.29,0.00021369,4]
[365142193,1749489039152,-460.0,0.00021369,4]
[365142194,1749489039162,-460.0,0.00021369,4]
[365142195,1749489039171,-460.0,0.00021369,4]
[365142196,1749489039181,-460.0,0.00021369,4]
[365142197,1749489039191,-460.0,0.00021369,2]
[365142198,1749489039199,-587.59540472,0.00021369,4]
[365142199,1749489039209,-460.0,0.00021369,4]
[365142200,1749489039219,-460.0,0.00021369,4]
[365142201,1749489039228,-460.0,0.00021369,4]
[365142202,1749489039238,-460.0,0.00021369,4]
[365142203,1749489039247,-460.0,0.00021369,4]
[365142204,1749489039257,-460.0,0.00021369,4]
[365142205,1749489039267,-877.19,0.00021369,4]
[365142206,1749489039276,-1328.58,0.00021369,4]
[365142207,1749489039287,-511.55,0.00021369,4]
[365142208,1749489039297,-460.0,0.00021369,4]
[365142209,1749489039307,-2000.09,0.00021369,4]
[365142210,1749489039317,-460.0,0.00021369,4]
[365142211,1749489039327,-1192.29,0.00021369,4]
[365142212,1749489039337,-673.73,0.00021369,4]
[365142213,1749489039347,-635.09,0.00021369,4]
[365142214,1749489039357,-460.0,0.00021369,4]
[365142215,1749489039366,-469.05,0.00021369,4]
[365142216,1749489039375,-460.0,0.00021369,4]
[365142217,1749489039385,-848.24,0.00021369,4]
[365142218,1749489039394,-370.0,0.00021369,4]
[365142219,1749489039403,-950.66,0.00021369,4]
[365142220,1749489039413,-494.39,0.00021369,4]
[365142221,1749489039422,-460.0,0.00021369,4]
[365142222,1749489039432,-440.0,0.00021369,4]
[365142223,1749489039442,-1235.43,0.00021369,4]
[365142224,1749489039451,-460.0,0.00021369,4]
[365142225,1749489039461,-460.0,0.00021369,4]
[365142226,1749489039470,-1049.95,0.00021369,4]
[365142227,1749489039480,-400.0,0.00021369,4]
[365142229,1749489039489,-400.0,0.00021369,4]
[365142231,1749489039499,-500.57069289,0.00021369,4]
[365142233,1749489039509,-460.0,0.00021369,4]
[365142235,1749489039518,-460.0,0.00021369,4]
[365142237,1749489039528,-744.9,0.00021369,4]
[365142239,1749489039537,-460.0,0.00021369,4]
[365142240,1749489039547,-460.0,0.00021369,4]
[365142242,1749489039557,-460.0,0.00021369,4]